Cogmind - Beta 13 X1 @@@ ROGUE MODE // 2023.10.11 @ 19:54:18 Player: VR-DUX Result: Destroyed self with Grenade Launcher Performance ------------- Evolutions (0) 0 Regions Visited (2) 400 Robots Destroyed (39) 195 Value Destroyed (1035) 1035 Prototype IDs (0) 0 Alien Tech Used (0) 0 Bonus (0) 0 TOTAL SCORE: 1630 Bonus ------- None Cogmind --------- Core Integrity 0/250 Matter 233/300 Energy 160/160 System Corruption 2% Temperature Cool (6) Movement Treading (160) Location -10/Subcaves Parts ------- > --- POWER (1) -------- Light Nuclear Core > --- PROPULSION (2) --- Light Treads > --- UTILITY (2) ------ Medium Storage Unit Makeshift Armor Plating > --- WEAPON (2) ------- (None) > --- INVENTORY (10) --- Structural Scanner Sensor Array Signal Interpreter Assault Rifle Battle Cannon Peak State ------------ > --- POWER ------------ Light Nuclear Core > --- PROPULSION ------- Light Treads Light Treads > --- UTILITY ---------- Medium Storage Unit Makeshift Armor Plating > --- WEAPON ----------- Assault Rifle Battle Cannon > --- INVENTORY -------- Structural Scanner Sensor Array Signal Interpreter Battle Cannon Grenade Launcher [Rating: 13] Favorites ----------- Power Ion Engine Engine Ion Engine Power Core Light Nuclear Core Propulsion Light Treads Treads Light Treads Leg Aluminum Leg Wheel Compact Wheel Utility Medium Storage Unit Device Structural Scanner Storage Medium Storage Unit Hackware Hacking Suite Protection Makeshift Armor Plating Weapon Light Cannon Energy Gun Small Laser Ballistic Gun Assault Rifle Ballistic Cannon Light Cannon Launcher Grenade Launcher Build | -11 -10 -10 ------- Run | Jun Mat Sub Slots Evolved . | . . . Power . | . . . Propulsion . | . . . Utility . | . . . Weapon . | . . . Parts Attached 27 | 1 15 11 Power 2 | . 1 1 Engine 1 | . 1 . Core 1 | . . 1 Reactor . | . . . Propulsion 6 | . 5 1 Treads 4 | . 3 1 Leg . | . . . Wheel 2 | . 2 . Hover . | . . . Flight . | . . . Utility 6 | 1 3 2 Device 3 | 1 1 1 Storage 1 | . 1 . Processor . | . . . Hackware 1 | . 1 . Protection 1 | . . 1 Artifact . | . . . Weapon 13 | . 6 7 Energy Gun . | . . . Energy Cannon . | . . . Ballistic Gun 1 | . . 1 Ballistic Cannon 9 | . 6 3 Launcher 3 | . . 3 Special Weapon . | . . . Impact Weapon . | . . . Slashing Weapon . | . . . Piercing Weapon . | . . . Special Melee Weapon . | . . . Unidentified Prototypes . | . . . Parts Lost 9 | . 2 7 Power 1 | . . 1 Propulsion 2 | . . 2 Utility 1 | . 1 . Weapon 5 | . 1 4 Highest Loss Streak 4 | . 1 4 To Critical Strikes . | . . . Average Slot Usage (%) 96 | . 98 94 Engine 10 | . 13 8 Core 3 | . . 5 Treads 24 | . 25 23 Device 6 | . 3 7 Storage 14 | . 14 14 Hackware 4 | . 10 . Protection 3 | . . 5 Ballistic Gun 2 | . . 3 Ballistic Cannon 23 | . 25 21 Launcher 1 | . . 2 Naked Turns . | . . . Heaviest Build 25 | 13 21 25 Greatest Support 40 | 20 40 40 Greatest Overweight (x) 1 | . 1 1 Average Overweight (x) . | . . . Largest Inventory Capacity 10 | 8 10 10 Average Capacity 9 | 8 8 10 Most Carried 9 | 8 8 9 Average Carried 6 | 6 6 6 Final Capacity 10 | 8 10 10 Final Carried 8 | 8 7 5 Class Distribution -------------------- 100% | Mutant Dominant Class ---------------- Mutant | -10/Materials Mutant | -10/Subcaves Resources | -11 -10 -10 ----------- Run | Jun Mat Sub Matter Collected 1255 | 218 641 396 Remotely . | . . . Salvage Created 1055 | 90 769 196 Parts 84 | 9 65 10 Haulers Intercepted 2 | . 2 . Recyclers Shooed 2 | . 2 . Parts Field Recycled . | . . . Retrieved Matter . | . . . Parts Self-Destructed 17 | . . 17 Prevented . | . . . Kills | -11 -10 -10 ------- Run | Jun Mat Sub Combat Hostiles Destroyed 25 | . 18 7 Guns 1 | . . 1 Cannons 22 | . 18 4 AOE 2 | . . 2 Classes Destroyed 8 | 2 5 1 Builder 4 | . 4 . Tunneler 2 | 2 . . Hauler 2 | . 2 . Recycler 3 | 1 2 . Operator 1 | . 1 . Watcher 2 | . 2 . Grunt 18 | . 18 . Subdweller 7 | . . 7 Best Kill Streak 5 | 1 5 2 Combat Bots Only 4 | . 4 2 Max Kills in Single Turn 2 | 1 2 1 Gunslinging . | . . . Exploded 1 | . . 1 Melee . | . . . Uniques/NPCs Destroyed . | . . . Combat | -11 -10 -10 -------- Run | Jun Mat Sub Damage Taken 1495 | . 741 754 Core 252 | . 161 91 Absorbed by Shields . | . . . Core Remaining (%) 100 | 100 . . Volleys Fired 120 | 10 68 42 Largest 2 | 2 2 2 Hottest 70 | 60 70 70 Shots Fired 211 | 20 129 62 Gun 32 | 20 1 11 Cannon 162 | . 128 34 Launcher 17 | . . 17 Special . | . . . Kinetic 184 | 10 129 45 Thermal 10 | 10 . . Explosive 17 | . . 17 Electromagnetic . | . . . Robot Hit Streak 22 | 7 11 22 Robot Miss Streak 3 | 3 3 2 Penetration Max . | . . . Secondary Targets . | . . . Shots Hit Robots 127 | 12 77 38 Core Hits 53 | 6 32 15 Critical Kills . | . . . Critical Parts Destroyed . | . . . Critical Strikes 3 | . 3 . Blast 3 | . 3 . Melee Attacks . | . . . Impact . | . . . Slashing . | . . . Piercing . | . . . Sneak Attacks . | . . . Combat Hostiles . | . . . Follow-up Attacks . | . . . Damage Inflicted 2327 | 110 1417 800 Guns 218 | 110 9 99 Cannons 1906 | . 1408 498 Explosions 203 | . . 203 Melee . | . . . Ramming . | . . . Kinetic 2071 | 57 1417 597 Thermal 53 | 53 . . Explosive 203 | . . 203 Electromagnetic . | . . . Impact . | . . . Slashing . | . . . Piercing . | . . . Highest Corruption 2 | . 2 2 Average Corruption 2 | . 2 2 Corruption Purged . | . . . Corruption Blocked . | . . . Effects 29 | . 1 28 Message Errors 6 | . . 6 Matter Fused 4 | . . 4 Heat Flow Errors 3 | . . 3 Energy Discharges 3 | . . 3 Data Loss (minor) 3 | . 1 2 Data Loss (major) 2 | . . 2 Misfires 4 | . . 4 Alerts 3 | . . 3 Weapon Failures 1 | . . 1 Overload Shots . | . . . Overflow Damage 11 | . 3 8 Projectiles 3 | . 3 . Explosions 8 | . . 8 Melee . | . . . Knockbacks 24 | . 19 5 Impact . | . . . Kinetic 20 | . 15 5 Secondary 4 | . 4 . Self-Inflicted Damage 107 | . . 107 Shots 6 | . . 6 Rammed . | . . . Targets Rammed . | . . . Kicked . | . . . Crushed . | . . . Highest Temperature 311 | 40 311 240 Average Temperature 71 | 22 74 111 Received Heat Transfer 684 | . 450 234 Effects 2 | . 2 . Interference 1 | . 1 . Damage (minor) 1 | . 1 . Siege Activations . | . . . Robots Corrupted . | . . . Combat Hostiles . | . . . Parts Fried . | . . . Impact Corruptions . | . . . Robots Melted . | . . . Combat Hostiles . | . . . Parts Melted . | . . . Heat Transferred 125 | 125 . . Parts Sabotaged . | . . . Parts Stolen . | . . . Parts Stripped . | . . . Power Chain Reactions . | . . . Missiles Intercepted . | . . . Alert | -11 -10 -10 ------- Run | Jun Mat Sub Peak Influence 252 | 15 252 . Initial 9 | . 9 . Average 117 | 7 121 . Maximum Alert Level 1 | . 1 . Low Security (%) 94 | 100 94 . Level 1 5 | . 5 . Level 2 . | . . . Level 3 . | . . . Level 4 . | . . . Level 5 . | . . . High Security . | . . . Max Security . | . . . Squads Dispatched 5 | . 5 . Investigation 5 | . 5 . Extermination . | . . . Reinforcement . | . . . Assault . | . . . Garrison . | . . . Intercept . | . . . Searches Triggered . | . . . Construction Impeded . | . . . Haulers Reinforced . | . . . Active Scanning Responses . | . . . Cargo Convoy Interrupts . | . . . Stealth | -11 -10 -10 --------- Run | Jun Mat Sub Distress Signals 2 | . 2 . Communications Jammed . | . . . Distress Signals . | . . . Times Spotted 31 | . 23 8 Peak Tracking Total 5 | . 5 2 Tactical Retreats 2 | . 1 1 Traps | -11 -10 -10 ------- Run | Jun Mat Sub Traps Triggered 3 | . 3 . Indirectly . | . . . Trap Hack Attempts . | . . . Triggered . | . . . Disarmed . | . . . Reprogrammed 2 | . 2 . Reused . | . . . Traps Extracted . | . . . Installed . | . . . Triggered . | . . . Machines | -11 -10 -10 ---------- Run | Jun Mat Sub Machines Disabled . | . . . Max in Single Turn . | . . . Machines Repaired . | . . . Machines Sabotaged . | . . . Overloaded Fab Kills . | . . . Hacking | -11 -10 -10 --------- Run | Jun Mat Sub Machines Accessed 9 | . 9 . Terminals 7 | . 7 . Fabricators . | . . . Repair Stations . | . . . Recycling Units 2 | . 2 . Scanalyzers . | . . . Garrison Access . | . . . Total Hacks 21 | . 21 . Successful 10 | . 10 . Failed 10 | . 10 . Catastrophic 3 | . 3 . Database Lockouts 1 | . 1 . Manual 15 | . 15 . Terminals 14 | . 14 . Fabricators . | . . . Repair Stations . | . . . Recycling Units 7 | . 7 . Scanalyzers . | . . . Garrison Access . | . . . Terminal Hacks 6 | . 6 . Robot Analysis 2 | . 2 . Alert Level 1 | . 1 . Locate Traps 1 | . 1 . Reprogram Traps 1 | . 1 . Recall Investigation 1 | . 1 . Fabricator Hacks . | . . . Repair Station Hacks . | . . . Recycling Unit Hacks 4 | . 4 . Retrieve Components 4 | . 4 . Scanalyzer . | . . . Garrison Access Hacks . | . . . Unauthorized Hacks . | . . . Terminals . | . . . Fabricators . | . . . Repair Stations . | . . . Recycling Units . | . . . Scanalyzers . | . . . Garrison Access . | . . . Data Cores Recovered . | . . . Used . | . . . Hacking Detections 7 | . 7 . Full Trace Events 3 | . 3 . Feedback Events . | . . . Feedback Blocked . | . . . Robot Schematics Acquired . | . . . Robots Built . | . . . Authchips . | . . . Time . | . . . Total Robot Build Rating . | . . . Part Schematics Acquired . | . . . Parts Built . | . . . Authchips . | . . . Time . | . . . Total Part Build Rating . | . . . Parts Repaired . | . . . Time . | . . . Parts Recycled . | . . . Recycled Matter . | . . . Retrieved Matter . | . . . Retrieved Components 10 | . 10 . Parts Scanalyzed . | . . . Part Schematics Acquired . | . . . Parts Damaged . | . . . Bothacking | -11 -10 -10 ------------ Run | Jun Mat Sub Used RIF Installer . | . . . Robots Hacked . | . . . Non-combat . | . . . Combat . | . . . Robot Hacks Applied . | . . . Relay Couplers Released . | . . . Fabnet Peak Effective % . | . . . Robots Rewired . | . . . Allies Hacked . | . . . Hacks Repelled . | . . . Allies | -11 -10 -10 -------- Run | Jun Mat Sub Total Allies . | . . . Largest Group . | . . . Highest-Rated Group . | . . . Highest-Rated Ally . | . . . Total Orders . | . . . Ally Attacks . | . . . Total Damage . | . . . Kills . | . . . Allies Corrupted . | . . . Allies Melted . | . . . Intel | -11 -10 -10 ------- Run | Jun Mat Sub Robot Analysis Total 2 | . 2 . Derelict Logs Recovered . | . . . Drone Launches . | . . . Drone Recoveries . | . . . Exploration | -11 -10 -10 ------------- Run | Jun Mat Sub Turns Passed 3641 | 58 1532 2051 Spaces Moved 1904 | 23 835 1046 Core . | . . . Treads 1744 | . 698 1046 Legs 53 | 23 30 . Wheels 107 | . 107 . Hover . | . . . Flight . | . . . Fastest Speed 100 | 120 100 160 Average Speed 167 | 120 152 181 Slowest Speed 240 | 120 160 240 Overloaded Moves . | . . . Propulsion Burnouts . | . . . Robots Hopped . | . . . Cave-ins Triggered . | . . . Exploration Rate (%) 54 | 3 98 62 Regions Visited 2 Branch Regions 1 Pre-discovered Areas 1 | . . 1 Known Exits Taken . | . . . Unknown Exits Taken 2 | 1 1 . Scrap Searched 6 | . . 6 Spaces Dug . | . . . Terrain Destroyed 97 | . . 97 Melee . | . . . Projectile . | . . . AOE 97 | . . 97 Terrain Rammed . | . . . Walls Destroyed . | . . . Machines Disabled . | . . . Actions | -11 -10 -10 --------- Run | Jun Mat Sub Total 2144 | 35 966 1143 Wait 67 | . 27 40 Move 1902 | 22 834 1046 Hop . | . . . Pick Up 15 | 2 10 3 Fast Attach 3 | 1 2 . Attach 10 | . 5 5 Detach . | . . . Swap 14 | . 8 6 Drop 13 | . 12 1 Fire 120 | 10 68 42 Melee . | . . . Ram . | . . . Kick . | . . . Crush . | . . . Escape Stasis . | . . . Rewire . | . . . Trap . | . . . Miscellaneous . | . . . Route ------- -11/Junkyard -10/Materials (discovered 5 exits: [*Mat x3] / [*Min] / [*Sub]) -10/Subcaves (discovered 1 exit: [*Mat]) History --------- Turn | Location | Event 1 | -11/Junkyard | Discovered new exit (range 2) 59 | -11/Junkyard | Entered Materials 306 | -10/Materials | Build established: Mutant 442 | -10/Materials | Discovered new exit (range 7) 502 | -10/Materials | Core integrity fell below 50% 564 | -10/Materials | Discovered new exit (range 15) 735 | -10/Materials | Discovered new exit (range 14) 939 | -10/Materials | Discovered new exit (range 15) 947 | -10/Materials | Central database locked down 1452 | -10/Materials | Discovered new exit (range 10) 1591 | -10/Materials | Entered Subcaves 2378 | -10/Subcaves | Shifting Twisted Machinery released Battle Cannon 2381 | -10/Subcaves | Shifting Twisted Machinery released Battle Cannon 2521 | -10/Subcaves | Discovered new exit (range 15) 2762 | -10/Subcaves | Core integrity fell below 20% 2802 | -10/Subcaves | Lost 4 parts (1p1n2w) 3156 | -10/Subcaves | Learned location of Zion (-6) 3156 | -10/Subcaves | Met a Zionite searching for "candidates" 3264 | -10/Subcaves | Ambushed by Subdweller buried in earth 3487 | -10/Subcaves | A swath of the cavern ceiling suddenly collapsed 3642 | -10/Subcaves | Destroyed self with Grenade Launcher Last Messages --------------- 03164_ System corrupted: Energy discharge (-32). 03265_ 4K-5Z8(R): "ARGHSUB!" 03268_ 4K-5Z8(R) destroyed. 03270_ The unstable cave ceiling collapses. 03303_ Sub. Machine Gun crushed. 03307_ The unstable cave ceiling collapses. 03308_ Acquired 23 matter. 03387_ System corrupted: FCS attempts to trigger Grenade Launcher. 03387_ System corrupted: Grenade Launcher misfires. 03389_ The unstable cave ceiling collapses. 03423_ Acquired 7 matter. 03425_ Acquired 40 matter. 03437_ Acquired 13 matter. 03442_ Acquired 11 matter. 03459_ System corrupted: Energy discharge (-40). A swath of the cavern ceiling suddenly collapses. 03641_ Battle Cannon destroyed. 03642_ Q3-H2A(R) destroyed. 03642_ Grenade Launcher destroyed. 03642_ Destroyed Grenade Launcher. Map ----- +----------------------------------------------------+ | #?##"""""" #### #######???????## # | | ## " """ """=! ????## ## | | # " = &*%! ????## ## | | # "##" *"!%" " ???### # | | ### "#########????????## # | | ??# # ## "##"""##????????????????######### | | ??# #### ## ## """ #?????????????????######### | | ???????# #### #?????????????????????????? | | ???????# #??### #?????????????????????????? | | ???????## #????### #?????????????????????????? | | ????????# ##?????####?????????????????????????? | | ???????## ##?????????????????????????????????? | | ??????## ##????????????????????????????????? | | ?????## ##???????????????????????????????? | | ?????# ##??????????????????????????????? | | ?????##### #??????????????????????????????? | | ???####### ##??????????????????????????????? | | ???# ### ##???????????????????????????????? | | ???# # ###???????????????????????????????? | | ##### # #???????????????????????????????? | | ## ## #?????????###???????????????????? | | #### ##?###???# ????????????????????? | | #"## ###;##?#""?????????????????????? | | "#" "#;##"#??#???????????????????? | | # "#### "##";;## ##??????????????????? | | #### ### # #####""#""#@ #??????????????????? | | ???# #?### #????#####"# & #??????????????????? | | ???## #??? #????????### *% #??????????????????? | | ????####??? ????????????? R #??????????????????? | | ?????????? ????????????? #??????????????????? | | ?????????? ????????????? #??????????????????? | | ?????????? ?????????????? ??????????????????? | | ?????????## ??????????????? ?????????????????? | | ??????????????????????????? ????????????????? | | ??????????????????????????? ???????????????? | | ???????????????????????????? ??????????????? | | ???????????????????????????? ## ?????????????? | | ???????????????????????????? ##? ??????????????? | | ???????????????????????????? ##?????????????????? | | ????????????????????????????? ???????????????????? | | ?????????????????????????????????????????????????? | | ?????????????????????????????????????????????????? | | ?????????????????????????????????????????????????? | | ?????????????????????????????????????????????????? | | ?????????????????????????????????????????????????? | | ?????????????????????????????????????????????????? | | ?????????????????????????????????????????????????? | | ?????????????????????????????????????????????????? | | ?????????????????????????????????????????????????? | | ?????????????????????????????????????????????????? | +----------------------------------------------------+ Best States ------------- Heat Dissipation 25 Energy Generation 14 Energy Capacity 250 Matter Stores 300 Matter Capacity 300 Sight Range 16 Terrain Scan Range 16 Terrain Scan Density 10 Armor Coverage 100 Evasion (%) 55 Recoil Reduction 2 Offensive Hacking 10 Item Schematics ----------------- None Robot Schematics ------------------ None Fabricated ------------ Nothing Alien Tech Used ----------------- None Achievements -------------- None Challenges ------------ None Game ------ Seed BoreThiefExoskeleton Manual? 0 Play Time 00:27:44 Cumulative 165.8 hours Start 2023.10.11 @ 19:27:54 End 2023.10.11 @ 19:54:18 Sessions 1 Manual Loads 0 Difficulty Rogue Special Mode None Game No. 105 Rogue 105 Adventurer 0 Explorer 0 Win Type - Total 3 Types 2/0/1/0/0/0/0/0/0 Lore% 51 Gallery% 51 Achievement% 49 Wizard Run 0 Options --------- ASCII 0 Keyboard 0 Movement Mouse Keybinds 0 Fullscreen 1 Font 18/SmallcapsGlow Map View 76x50 Tactical HUD 1 Map Filters NONE Filters NONE Steam X RUN: e9a2b374-a9bc-4ae7-ab3e-8fddd1018b4c